Cogmind - Beta 10 @@@ ROGUE MODE // 2020.09.19 @ 13:24:41 Player: Grimtide Result: Destroyed by G-47 Trooper with Particle Gun Performance ------------- Evolutions (0) 0 Regions Visited (1) 200 Robots Destroyed (13) 65 Value Destroyed (395) 395 Prototype IDs (2) 40 Alien Tech Used (0) 0 Bonus (0) 0 TOTAL SCORE: 700 Bonus ------- None Cogmind --------- Core Integrity 0/250 Matter 282/300 Energy 65/100 System Corruption 0% Temperature Cool (116) Movement Rolling (80) Location -10/Materials Parts ------- > --- POWER (1) -------- (None) > --- PROPULSION (2) --- Wheel > --- UTILITY (2) ------ Small Storage Unit > --- WEAPON (2) ------- Mining Laser > --- INVENTORY (6) ---- Ion Engine Ion Engine Ion Engine Wheel VTOL Module Peak State ------------ > --- POWER ------------ Ion Engine > --- PROPULSION ------- VTOL Module VTOL Module > --- UTILITY ---------- Small Storage Unit Targeting Computer > --- WEAPON ----------- Assault Rifle Light Assault Rifle > --- INVENTORY -------- Ion Engine Wheel Wheel [Rating: 9] Favorites ----------- Power Ion Engine Engine Ion Engine Propulsion Wheel Wheel Wheel Flight Unit VTOL Module Utility Small Storage Unit Storage Small Storage Unit Processor Targeting Computer Weapon Small Laser Energy Gun Small Laser Ballistic Gun Light Assault Rifle Special Weapon Mining Laser Build | -11 -10 ------- Run | Scr Mat Slots Evolved . | . . Power . | . . Propulsion . | . . Utility . | . . Weapon . | . . Parts Attached 23 | 6 17 Power 4 | 1 3 Engine 4 | 1 3 Core . | . . Reactor . | . . Propulsion 8 | 2 6 Treads . | . . Leg . | . . Wheel 6 | 2 4 Hover . | . . Flight 2 | . 2 Utility 2 | 1 1 Device . | . . Storage 1 | 1 . Processor 1 | . 1 Hackware . | . . Protection . | . . Artifact . | . . Weapon 9 | 2 7 Energy Gun 5 | . 5 Energy Cannon . | . . Ballistic Gun 2 | 2 . Ballistic Cannon . | . . Launcher . | . . Special Weapon 2 | . 2 Impact Weapon . | . . Slashing Weapon . | . . Piercing Weapon . | . . Special Melee Weapon . | . . Unidentified Prototypes . | . . Parts Lost 11 | . 11 Power 1 | . 1 Propulsion 3 | . 3 Utility 1 | . 1 Weapon 6 | . 6 Highest Loss Streak 3 | . 3 Average Slot Usage (%) 86 | . 86 Engine 14 | . 14 Wheel 15 | . 15 Flight 6 | . 6 Storage 14 | . 14 Processor 13 | . 13 Energy Gun 11 | . 11 Ballistic Gun 9 | . 9 Naked Turns . | . . Heaviest Build 13 | 12 13 Greatest Support 20 | 20 20 Greatest Overweight (x) 2 | . 2 Average Overweight (x) . | . . Largest Inventory Capacity 6 | 6 6 Average Capacity 5 | 5 6 Most Carried 5 | 4 5 Average Carried 3 | 1 3 Final Capacity 6 | 6 6 Final Carried 5 | 1 5 Class Distribution -------------------- 100% | Mutant Dominant Class ---------------- Mutant | -10/Materials Resources | -11 -10 ----------- Run | Scr Mat Matter Collected 463 | 147 316 Remotely . | . . Salvage Created 484 | 76 408 Parts 28 | 2 26 Haulers Intercepted . | . . Recyclers Shooed 1 | . 1 Parts Field Recycled . | . . Retrieved Matter . | . . Parts Self-Destructed . | . . Prevented . | . . Kills | -11 -10 ------- Run | Scr Mat Combat Hostiles Destroyed 10 | . 10 Guns 10 | . 10 Classes Destroyed 4 | 2 2 Tunneler 1 | 1 . Recycler 1 | 1 . Watcher 1 | . 1 Grunt 10 | . 10 Best Kill Streak 3 | 2 3 Combat Bots Only 2 | . 2 Max Kills in Single Turn 1 | 1 1 Gunslinging . | . . Exploded . | . . Melee . | . . Uniques/NPCs Destroyed . | . . Combat | -11 -10 -------- Run | Scr Mat Damage Taken 1024 | . 1024 Core 258 | . 258 Absorbed by Shields . | . . Core Remaining (%) 100 | 100 . Volleys Fired 78 | 3 75 Largest 2 | 2 2 Hottest 200 | 40 200 Shots Fired 123 | 5 118 Gun 118 | 5 113 Cannon . | . . Launcher . | . . Special 5 | . 5 Kinetic 54 | 5 49 Thermal 69 | . 69 Explosive . | . . Electromagnetic . | . . Robot Hit Streak 9 | 2 9 Robot Miss Streak 3 | 1 3 Penetration Max . | . . Secondary Targets . | . . Shots Hit Robots 81 | 2 79 Core Hits 26 | 3 23 Critical Hits . | . . Critical Kills . | . . Critical Parts Destroyed . | . . Melee Attacks . | . . Impact . | . . Slashing . | . . Piercing . | . . Sneak Attacks . | . . Combat Hostiles . | . . Follow-up Attacks . | . . Damage Inflicted 906 | 36 870 Guns 906 | 36 870 Cannons . | . . Explosions . | . . Melee . | . . Ramming . | . . Kinetic 365 | 36 329 Thermal 541 | . 541 Explosive . | . . Electromagnetic . | . . Impact . | . . Slashing . | . . Piercing . | . . Highest Corruption . | . . Average Corruption . | . . Corruption Purged . | . . Overload Shots . | . . Overflow Damage . | . . Projectiles . | . . Explosions . | . . Melee . | . . Knockbacks . | . . Impact . | . . Kinetic . | . . Secondary . | . . Self-Inflicted Damage . | . . Shots . | . . Rammed . | . . Targets Rammed . | . . Kicked . | . . Crushed . | . . Highest Temperature 260 | . 260 Average Temperature 87 | . 87 Received Heat Transfer 576 | . 576 Effects 1 | . 1 Interference 1 | . 1 Siege Activations . | . . Robots Corrupted . | . . Combat Hostiles . | . . Parts Fried . | . . Impact Corruptions . | . . Robots Melted . | . . Combat Hostiles . | . . Parts Melted 2 | . 2 Heat Transferred 1244 | . 1244 Parts Sabotaged . | . . Parts Stolen . | . . Parts Stripped . | . . Power Chain Reactions . | . . Missiles Intercepted . | . . Alert | -11 -10 ------- Run | Scr Mat Peak Influence 205 | 10 205 Initial 6 | . 6 Average 78 | 4 82 Maximum Alert Level 1 | . 1 Low Security (%) 93 | 100 93 Level 1 6 | . 6 Level 2 . | . . Level 3 . | . . Level 4 . | . . Level 5 . | . . High Security . | . . Max Security . | . . Squads Dispatched 1 | . 1 Investigation 1 | . 1 Extermination . | . . Reinforcement . | . . Assault . | . . Garrison . | . . Intercept . | . . Construction Impeded . | . . Haulers Reinforced . | . . Stealth | -11 -10 --------- Run | Scr Mat Distress Signals 1 | . 1 Communications Jammed . | . . Distress Signals . | . . Times Spotted 18 | . 18 Peak Tracking Total 4 | . 4 Tactical Retreats 2 | . 2 Traps | -11 -10 ------- Run | Scr Mat Traps Triggered . | . . Indirectly . | . . Trap Hack Attempts . | . . Triggered . | . . Disarmed . | . . Reprogrammed . | . . Reused . | . . Traps Extracted . | . . Installed . | . . Triggered . | . . Machines | -11 -10 ---------- Run | Scr Mat Machines Disabled . | . . Max in Single Turn . | . . Machines Sabotaged . | . . Garrisons Compromised . | . . Overloaded Fab Kills . | . . Fab Network Shutdowns . | . . Hacking | -11 -10 --------- Run | Scr Mat Machines Accessed 3 | . 3 Terminals 2 | . 2 Fabricators . | . . Repair Stations 1 | . 1 Recycling Units . | . . Scanalyzers . | . . Garrison Access . | . . Total Hacks 8 | . 8 Successful 4 | . 4 Failed 4 | . 4 Catastrophic . | . . Database Lockouts . | . . Manual . | . . Terminals 5 | . 5 Fabricators . | . . Repair Stations 3 | . 3 Recycling Units . | . . Scanalyzers . | . . Garrison Access . | . . Terminal Hacks 3 | . 3 Record 1 | . 1 Prototype ID Bank 1 | . 1 Locate Traps 1 | . 1 Fabricator Hacks . | . . Repair Station Hacks 1 | . 1 Scan Component 1 | . 1 Recycling Unit Hacks . | . . Scanalyzer . | . . Garrison Access Hacks . | . . Unauthorized Hacks . | . . Terminals . | . . Fabricators . | . . Repair Stations . | . . Recycling Units . | . . Scanalyzers . | . . Garrison Access . | . . Data Cores Recovered . | . . Used . | . . Hacking Detections 3 | . 3 Full Trace Events 1 | . 1 Feedback Events . | . . Feedback Blocked . | . . Robot Schematics Acquired . | . . Robots Built . | . . Matter . | . . Time . | . . Total Robot Build Rating . | . . Part Schematics Acquired . | . . Parts Built . | . . Matter . | . . Time . | . . Total Part Build Rating . | . . Parts Repaired . | . . Time . | . . Parts Recycled . | . . Recycled Matter . | . . Retrieved Matter . | . . Retrieved Components . | . . Parts Scanalyzed . | . . Part Schematics Acquired . | . . Parts Damaged . | . . Bothacking | -11 -10 ------------ Run | Scr Mat Used RIF Installer . | . . Robots Hacked . | . . Non-combat . | . . Combat . | . . Robot Hacks Applied . | . . Relay Couplers Released . | . . Robots Rewired . | . . Allies Hacked . | . . Hacks Repelled . | . . Allies | -11 -10 -------- Run | Scr Mat Total Allies . | . . Largest Group . | . . Highest-Rated Group . | . . Highest-Rated Ally . | . . Total Orders . | . . Ally Attacks . | . . Total Damage . | . . Kills . | . . Allies Corrupted . | . . Allies Melted . | . . Intel | -11 -10 ------- Run | Scr Mat Robot Analysis Total . | . . Derelict Logs Recovered . | . . Drone Launches . | . . Drone Recoveries . | . . Exploration | -11 -10 ------------- Run | Scr Mat Turns Passed 812 | 46 766 Spaces Moved 539 | 37 502 Core 8 | 8 . Treads . | . . Legs . | . . Wheels 435 | 29 406 Hover . | . . Flight 96 | . 96 Fastest Speed 50 | 50 80 Average Speed 96 | 73 98 Slowest Speed 200 | 80 200 Overloaded Moves . | . . Propulsion Burnouts . | . . Robots Hopped . | . . Cave-ins Triggered . | . . Exploration Rate (%) 34 | 3 66 Regions Visited 1 Branch Regions . Pre-discovered Areas . | . . Known Exits Taken . | . . Unknown Exits Taken 1 | 1 . Scrap Searched . | . . Spaces Dug . | . . Terrain Destroyed 1 | . 1 Melee . | . . Projectile 1 | . 1 AOE . | . . Terrain Rammed . | . . Walls Destroyed . | . . Machines Disabled . | . . Actions | -11 -10 --------- Run | Scr Mat Total 699 | 49 650 Wait 47 | . 47 Move 538 | 36 502 Hop . | . . Pick Up 11 | 4 7 Fast Attach 6 | 3 3 Attach 9 | 3 6 Detach 1 | . 1 Swap 8 | . 8 Drop 1 | . 1 Fire 78 | 3 75 Melee . | . . Ram . | . . Kick . | . . Crush . | . . Escape Stasis . | . . Rewire . | . . Trap . | . . Miscellaneous . | . . Route ------- -11/Scrapyard -10/Materials (discovered 2 exits: [*Mat x2]) History --------- Turn | Location | Event 2 | -11/Scrapyard | Met Revision 17 27 | -11/Scrapyard | Discovered new exit (range 14) 47 | -11/Scrapyard | Entered Materials 307 | -10/Materials | Build established: Mutant 370 | -10/Materials | Core integrity fell below 50% 597 | -10/Materials | Discovered new exit (range 10) 730 | -10/Materials | Discovered new exit (range 4) 798 | -10/Materials | Core integrity fell below 20% 813 | -10/Materials | Destroyed by G-47 Trooper with Particle Gun Last Messages --------------- 00597_ EXIT=FOUND 00600_ U-05 Engineer builds a Wall. 00602_ U-05 Engineer lays Concrete. 00604_ U-05 Engineer builds a Wall. 00616_ K-01 Serf collects debris. 00622_ T-07 Excavator is excavating. 00624_ K-01 Serf collects debris. 00636_ T-07 Excavator is excavating. 00667_ U-05 Engineer builds a Wall. 00707_ Connecting with Terminal... 00730_ EXIT=FOUND 00752_ Connecting with Terminal... 00770_ Sml. Laser destroyed. 00773_ Wheel destroyed. 00790_ Acquired Mining Laser. 00805_ Mining Laser destroyed. 00805_ U-05 Engineer lays Concrete. 00807_ Targeting Computer destroyed. 00810_ Ion Engine destroyed. 00811_ U-05 Engineer lays Concrete. Map ----- +----------------------------------------------------+ | # # # #????????????????????????????? | | # """ # # #????????????????????????????? | | + """ ##+##### #????????????????????????????? | | # # """ ## #???# #????????????????????????????? | | # # """ ## #???# #????????????? ??????????????? | | # # """ ## ##### +????????????# ??????????????? | | # # # #????????????# ??????????????? | | # ######## #????????????# ###?????? ???? | | # #??????# ########?????# #????? ??? | | # #########+##### # #?????+ #????? ???? | | # ## # # !#?????# #???? ????? | | ## # #! #?????# #???? #????? | | ## # %+ """ #?????# #??? #????? | | ## # #%""" #?????# #??? #????? | | # ## ^"T" # # """ #?????# #### #????? | | ## ############ # #?????# #????? | | ## ######?????# ########?????# #????? | | # # #?????# ############?# #????? | | + #?????# #?# #?????? | | # # #?????# k #?# #?????? | | # ######?????# !! !!! #?# #?????? | | ## ##?????????# !! !!! #?# ###### #?????? | | # ########### != !!! #?# #???????#?????? | | # u #?# #?????????????? | | + g ###+####??????????? | | # @ g # #??????????? | | # ####################;# # """ #??????????? | | ## ##????????????# # # "T" #??????????? | | ## #?????????????# + + " " #??????????? | | ## #?????????????# # # #??????????? | | ## #?????????????######### # = #??????????? | | !# #??????????????######## ########??????????? | | # #??????????????# #?????????????????? | | # #??????????????# #?????????????????? | | # #######????????# #?????????????????? | | ## ## ###??????# ###+####?????????????????? | | # ???????# # #?????????????????? | | #??????# < # ! #?????????????????? | | ###### ##???????# # #?????????????????? | | +####??# ##????????##### #?????????????????? | | #??# #?????????????# #?????????????????? | | #### ############??# #???########??????? | | "" + #??##+######### #??????? | | "" #### #???# #?# # #??????? | | "" #??##+###+###+## ##### ### # #??????? | | #??# # + #??????? | | #####??# #######+### # "T"" #??????? | | ???????# #?# # # """" #??????? | | ???????# #?# """ = ##############??????? | | ???????# #?# """ #???????????????????? | +----------------------------------------------------+ Best States ------------- Heat Dissipation 25 Energy Generation 10 Energy Capacity 250 Matter Stores 300 Matter Capacity 300 Sight Range 16 Terrain Scan Density 10 Evasion (%) 50 Targeting Accuracy 5 Item Schematics ----------------- None Robot Schematics ------------------ None Fabricated ------------ Nothing Alien Tech Used ----------------- None Achievements -------------- None Challenges ------------ None Game ------ Seed ImpulseStormChainsword Manual? 0 Play Time 00:17:04 Cumulative 6.6 hours Start 2020.09.19 @ 13:08:22 End 2020.09.19 @ 13:24:41 Sessions 1 Manual Loads 0 Difficulty Rogue Special Mode None Game No. 4 Rogue 2 Adventurer 0 Explorer 2 Win Type - Total 0 Types 0/0/0/0/0/0/0/0/0 Lore% 5 Gallery% 9 Achievement% 9 Wizard Run 0 Options --------- ASCII 0 Keyboard 0 Movement Mouse Keybinds 0 Fullscreen 1 Font 18/SmallcapsGlow Map View 76x50 Tactical HUD 1 Map Filters NONE Filters NONE Steam 1 RUN: bbce8dc1-c47f-4d6d-91b2-68505dccd14c